lending/lending_fUSD_20250121
["ID","MTS","AMOUNT","RATE_DAILY","PERIOD"]
[349782625,1737425439241,-1754.51,0.000219,31]
[349782626,1737425439250,-1754.51,0.000219,31]
[349782627,1737425439259,-1754.51,0.000219,31]
[349782628,1737425439268,-1754.51,0.000219,31]
[349782629,1737425439277,-1754.51,0.000219,31]
[349782630,1737425439287,-1754.51,0.000219,31]
[349782631,1737425439296,-1754.51,0.000219,31]
[349782632,1737425439305,-1754.51,0.000219,31]
[349782633,1737425439315,-1754.51,0.000219,31]
[349782634,1737425439324,-1754.51,0.000219,31]
[349782635,1737425439338,-1754.51,0.000219,31]
[349782636,1737425439347,-161.21708448,0.000219,2]
[349782637,1737425439356,-161.21708448,0.000219,2]
[349782638,1737425439365,-161.21708448,0.000219,2]
[349782639,1737425439374,-161.21708448,0.000219,2]
[349782640,1737425439383,-161.21708448,0.000219,2]
[349782641,1737425439393,-161.21708448,0.000219,2]
[349782642,1737425439402,-161.21708448,0.000219,2]
[349782643,1737425439411,-161.21708448,0.000219,2]
[349782644,1737425439421,-161.21708448,0.000219,2]
[349782645,1737425439430,-161.21708448,0.000219,2]
[349782646,1737425439439,-161.21708448,0.000219,2]
[349782647,1737425439447,-161.21708448,0.000219,2]
[349782648,1737425439456,-161.21708448,0.000219,2]
[349782649,1737425439465,-161.21708448,0.000219,2]
[349782650,1737425439474,-161.21708448,0.000219,2]
[349782651,1737425439483,-708.29535071,0.000219,2]
[349782652,1737425439492,-1100.94772431,0.000219,2]
[349782653,1737425439501,-231.810793,0.00021907,2]
[349782654,1737425439511,-500.0,0.00021907,2]
[349782655,1737425439520,-500.0,0.00021907,2]
[349782656,1737425439530,-508.92,0.00021907,2]
[349782657,1737425439539,-500.0,0.00021907,2]
[349782658,1737425439548,-500.0,0.00021907,2]
[349782659,1737425439557,-500.0,0.00021907,2]
[349782660,1737425439566,-500.0,0.00021907,2]
[349782661,1737425439576,-621.42,0.00021907,2]
[349782662,1737425439587,-642.03,0.00021907,2]
[349782663,1737425439597,-500.0,0.00021907,2]
[349782664,1737425439607,-569.27,0.00021907,2]
[349782665,1737425439617,-500.0,0.00021907,2]
[349782666,1737425439626,-500.0,0.00021907,2]
[349782667,1737425439635,-354.129524,0.00021907,2]
[349782668,1737425439644,-500.0,0.00021907,2]
[349782669,1737425439659,-500.0,0.00021907,2]
[349782670,1737425439669,-500.0,0.00021907,2]
[349782671,1737425439678,-618.2,0.00021907,2]
[349782672,1737425439688,-500.0,0.00021907,2]
[349782673,1737425439697,-500.0,0.00021907,2]
[349782674,1737425439707,-826.57,0.00021907,2]
[349782675,1737425439716,-500.0,0.00021907,2]
[349782676,1737425439726,-567.0,0.00021908,2]
[349782677,1737425439736,-537.0,0.00021908,2]
[349782678,1737425439745,-1363.417,0.00021908,2]
[349782679,1737425439754,-500.0,0.00021917,3]
[349782680,1737425439764,-4000.0,0.00021918,2]
[349782681,1737425439773,-150.0,0.00021918,2]
[349782682,1737425439782,-150.0,0.00021921,2]
[349782683,1737425439791,-150.0,0.00021956,2]
[349782684,1737425439800,-20625.0,0.00021973,2]
[349782685,1737425439810,-150.0,0.00021973,4]
[349782686,1737425439820,-158.94590029,0.00021973,4]
[349782687,1737425439831,-500.0,0.00021973,2]
[349782688,1737425439840,-155.55,0.0002199,2]
[349782689,1737425439849,-155.55,0.0002199,2]
[349782690,1737425439859,-155.55,0.0002199,2]
[349782691,1737425439868,-155.55,0.0002199,2]
[349782692,1737425439879,-5475.2663633,0.00021997,2]
[349782693,1737425439889,-1137.3384157,0.00021997,2]
[349782694,1737425439900,-150.0,0.00021999,2]
[349782695,1737425439910,-2000.0,0.00021999,2]
[349782696,1737425439922,-2000.0,0.00021999,2]
[349782697,1737425439932,-2000.0,0.00021999,2]
[349782698,1737425439941,-2000.0,0.00021999,2]
[349782699,1737425439951,-2000.0,0.00021999,2]
[349782700,1737425439961,-2000.0,0.00021999,2]
[349782701,1737425439971,-500.0,0.00021999,2]
[349782702,1737425439980,-332.5799057,0.00021999,2]
[349782703,1737425439990,-1031.44,0.00021999,2]
[349782704,1737425440000,-666.0,0.00021999,2]
[349782705,1737425440011,-30000.0,0.00021999,3]
[349782706,1737425440020,-2101.0,0.00021999,2]
[349782707,1737425440030,-220.09225564,0.00022,2]
[349782708,1737425440039,-9372121.17779854,0.00022,2]
[349782709,1737425440048,-1693.51306782,0.00022,2]
[349782712,1737425440058,-2500.0,0.00022,8]
[349782714,1737425440067,-3138729.22959494,0.00022,2]
[349782716,1737425440093,-2286.50740382,0.00022,2]
[349782717,1737425440104,-7816.79861032,0.00022,2]
[349782718,1737425440123,-5092.4296215,0.00022,2]
[349782719,1737425440145,-633.08932244,0.00021898,2]
[349782720,1737425440155,-500.0,0.00021899,2]
[349782721,1737425440164,-2132.50604171,0.00022,2]
[349782722,1737425440273,-1837.51131788,0.00022,2]
[349782723,1737425440491,-6664.5727,0.00022,2]
[349782724,1737425440503,-8565.4008585,0.00022,2]
[349782725,1737425440545,-66023.15939957,0.00022,2]
[349782977,1737425443260,-250.0,0.000209,2]
[349782979,1737425443270,-525.88764113,0.00021898,2]
[349782981,1737425443282,-500.0,0.00021898,2]
[349782983,1737425443292,-526.91321075,0.00021899,2]
[349782985,1737425443302,-500.0,0.00021899,2]
[349782987,1737425443311,-2315.87488786,0.00022,2]
[349782989,1737425443325,-597.50135419,0.00022,2]
[349782995,1737425443381,-452.83453485,0.00022,2]
[349782997,1737425443393,-970.6059146,0.00022,2]
[349783000,1737425443410,-717.8093996,0.00022,2]
[349783250,1737425446049,-812.408465,0.00021,7]
[349783254,1737425446206,-4187.591535,0.00021,7]
[349783255,1737425446216,-500.0,0.00021898,2]
[349783256,1737425446225,-399.40846472,0.00021898,2]
[349783257,1737425446260,-100.59153528,0.00021898,2]
[349783258,1737425446269,-1505.07414684,0.00022,2]
[349783268,1737425446577,2777.11521437,0.000198,5]
[349783559,1737425634751,982.0,0.00024,120]
[349783563,1737426108028,157.47,0.00010137,2]
[349783568,1737426357219,208.73396689,6.94e-05,2]
[349783572,1737426484958,86538.40089574,0.0001,2]
[349783574,1737426550112,-8567.15573536,0.000113,2]
[349783575,1737426550133,-500.0,0.00011973,2]
[349783576,1737426550155,-150.0,0.00011999,2]
[349783577,1737426550176,-300.0,0.00011999,2]
[349783578,1737426550197,-127573.23126464,0.00012,2]
[349783579,1737426561115,-7746.353258,0.00012,2]
[349783580,1737426569086,-4487.79779,0.00012,2]
[349783581,1737426570107,-45725.04874,0.00012,2]
[349783582,1737426624822,584.32,0.00024,90]
[349783591,1737426632241,-150.0,0.00011999,2]
[349783593,1737426632251,-12090.00037559,0.00012,2]
[349783595,1737426632295,-30309.5004337,0.00012,2]
[349783596,1737426632351,-514.35113266,0.00012,2]
[349783597,1737426632408,-28939.62124816,0.00012,2]
[349783598,1737426632420,-255.07371293,0.00012,2]
[349783599,1737426632466,-4760.26322365,0.00012,2]
[349783600,1737426632573,-2447.24244736,0.00012,2]
[349783601,1737426632585,-83030.64072935,0.00012,2]
[349783602,1737426632734,-21390.30995969,0.00012,2]
[349783941,1737426638192,-10591.17998013,0.00012,2]
[349783942,1737426638247,-235277.08925439,0.00012,2]
[349783943,1737426638256,-1188.96943919,0.00012421,2]
[349783944,1737426638265,-255.0,0.00013079,2]
[349783945,1737426638274,-1188.96943915,0.00013474,2]
[349783946,1737426638283,-433.0,0.00014255,2]
[349783947,1737426638292,-1188.96943915,0.00014527,2]
[349783948,1737426638301,-1188.96943915,0.00015581,2]
[349783949,1737426638310,-1188.96943915,0.00016634,2]
[349783950,1737426638319,-1188.96943915,0.00017687,2]
[349783951,1737426638328,-157.47,0.00018065,2]
[349783952,1737426638337,-250.0,0.00018414,2]
[349783953,1737426638346,-2502.0,0.000186,5]
[349783954,1737426638356,-523.416844,0.0001863,2]
[349783955,1737426638366,-1188.96943915,0.0001874,2]
[349783956,1737426638375,-651.33,0.0001879,2]
[349783957,1737426638388,-250.0,0.0001879,2]
[349783958,1737426638398,-1440.13,0.000194,10]
[349783959,1737426638407,-753.5015692,0.000195,2]
[349783960,1737426638417,-1188.96943915,0.00019794,2]
[349783961,1737426638426,-1430.76757568,0.000199,7]
[349783962,1737426638435,-52904.38847641,0.0002,14]
[349783963,1737426638451,-66084.95499841,0.0002,14]
[349783964,1737426638460,-1561.73,0.00020164,2]
[349783965,1737426638470,-692.65,0.00020607,2]
[349783966,1737426638480,-1000.0,0.00020641,2]
[349783967,1737426638490,-500.49,0.00020709,2]
[349783968,1737426638499,-181.17,0.00020713,2]
[349783969,1737426638508,-724.1,0.00020784,2]
[349783970,1737426638518,-1188.96943915,0.00020847,2]
[349783971,1737426638527,-161.398,0.000209,2]
[349783972,1737426638537,-820.93,0.00020909,30]
[349783973,1737426638546,-3669.0,0.00021,7]
[349783974,1737426638557,-1142.99,0.00021037,2]
[349783975,1737426638566,-23900.0,0.00021038,2]
[349783976,1737426638575,-651.33,0.00021054,2]
[349783977,1737426638585,-1210.47,0.00021184,2]
[349783978,1737426638595,-939.3712746,0.0002156,2]
[349783979,1737426638604,-170.11,0.00021571,2]
[349783980,1737426638614,-1057.0,0.000216,2]
[349783981,1737426638623,-1851.29182014,0.00021622,2]
[349783982,1737426638635,-1851.29182006,0.00021622,2]
[349783983,1737426638645,-1427.7834874,0.0002173,2]
[349783985,1737426638655,-1427.7834874,0.00021743,2]
[349783987,1737426638664,-150.0,0.00021749,2]
[349783989,1737426638674,-150.0,0.00021752,2]
[349783991,1737426638684,-150.0,0.0002177,2]
[349783993,1737426638693,-150.89967517,0.00021775,2]
[349783995,1737426638703,-430.3178249,0.00021785,2]
[349783997,1737426638712,-150.0,0.00021796,2]
[349783999,1737426638721,-150.0,0.00021797,2]
[349784001,1737426638730,-1000.0,0.00021798,2]
[349784003,1737426638740,-4201.9581,0.00021798,2]
[349784005,1737426638749,-1563.3818,0.00021798,2]
[349784007,1737426638758,-3506.8593,0.00021798,2]
[349784009,1737426638768,-1694.3305,0.000218,2]
[349784011,1737426638777,-150.0,0.00021806,2]
[349784013,1737426638786,-500.0,0.00021824,2]
[349784015,1737426638795,-1427.7834874,0.00021837,2]
[349784017,1737426638805,-150.0,0.00021843,2]
[349784019,1737426638814,-150.0,0.00021864,2]
[349784021,1737426638823,-150.0,0.00021866,2]
[349784024,1737426638832,-150.0,0.00021867,2]
[349784027,1737426638841,-1427.7834874,0.00021883,2]
[349784029,1737426638851,-500.0,0.0002189,2]
[349784031,1737426638860,-1427.7834874,0.00021896,2]
[349784033,1737426638869,-426.67777455,0.00021897,30]
[349784035,1737426638878,-1101.76048706,0.00021897,4]
[349784037,1737426638891,-504.32198758,0.00021898,2]
[349784039,1737426638900,-500.0,0.00021898,2]
[349784041,1737426638909,-507.76870969,0.00021898,2]
[349784042,1737426638918,-505.6582109,0.00021898,2]
[349784045,1737426638928,-507.33704223,0.00021898,2]
[349784046,1737426638937,-519.16053579,0.00021898,2]
[349784048,1737426638946,-519.1844596,0.00021898,2]
[349784050,1737426638958,-508.36678186,0.00021898,2]
[349784052,1737426638967,-500.0,0.00021898,2]
[349784054,1737426638977,-500.0,0.00021898,2]
[349784056,1737426638986,-500.0,0.00021898,2]
[349784058,1737426638998,-478.60921092,0.00021898,2]
[349784060,1737426639007,-150.0,0.00021898,2]
[349784062,1737426639016,-260.5713,0.00021899,2]
[349784064,1737426639028,-521.63218415,0.00021899,2]
[349784066,1737426639037,-500.0,0.00021899,2]
[349784068,1737426639047,-480.0,0.00021899,2]
[349784070,1737426639056,-440.0,0.00021899,2]
[349784072,1737426639066,-525.33840708,0.00021899,2]
[349784074,1737426639075,-522.7266139,0.00021899,2]
[349784076,1737426639084,-500.0,0.00021899,2]
[349784078,1737426639094,-520.91079011,0.00021899,2]
[349784080,1737426639103,-521.94845972,0.00021899,2]
[349784082,1737426639112,-500.0,0.00021899,2]
[349784084,1737426639121,-599.69840757,0.00021899,2]
[349784086,1737426639130,-500.0,0.00021899,2]
[349784088,1737426639142,-500.0,0.00021899,2]
[349784090,1737426639151,-522.5558028,0.00021899,2]
[349784092,1737426639160,-500.0,0.00021899,2]
[349784094,1737426639170,-500.0,0.00021899,2]
[349784096,1737426639179,-255.2348269,0.00021899,2]
[349784098,1737426639188,-500.0,0.00021899,2]
[349784100,1737426639198,-500.0,0.00021899,2]
[349784102,1737426639207,-500.0,0.00021899,2]
[349784104,1737426639216,-500.0,0.00021899,2]
[349784106,1737426639226,-595.84,0.00021899,2]
[349784108,1737426639235,-500.0,0.00021899,2]
[349784110,1737426639244,-500.0,0.00021899,2]
[349784112,1737426639252,-503.88574726,0.00021899,2]
[349784114,1737426639262,-500.0,0.00021899,2]
[349784116,1737426639271,-500.0,0.00021899,2]
[349784118,1737426639281,-500.0,0.00021899,2]
[349784120,1737426639290,-500.0,0.00021899,2]
[349784122,1737426639300,-429.74,0.00021899,2]
[349784124,1737426639310,-527.70461704,0.00021899,2]
[349784126,1737426639319,-500.0,0.00021899,2]
[349784128,1737426639328,-150.42581325,0.00021899,2]
[349784130,1737426639338,-150.42581325,0.00021899,2]
[349784132,1737426639348,-150.42581325,0.000219,2]
[349784133,1737426639359,-5000.0,0.000219,2]
[349784135,1737426639369,-500.0,0.000219,2]
[349784137,1737426639378,-1771.1884,0.000219,2]
[349784139,1737426639390,-3398.3877,0.000219,2]
[349784141,1737426639401,-1360.8027,0.000219,2]
[349784144,1737426639411,-1473.93,0.000219,31]
[349784146,1737426639421,-1473.93,0.000219,31]
[349784148,1737426639430,-1473.93,0.000219,31]
[349784150,1737426639439,-1473.93,0.000219,31]
[349784152,1737426639449,-1473.93,0.000219,31]
[349784154,1737426639459,-1473.93,0.000219,31]
[349784156,1737426639468,-1473.93,0.000219,31]
[349784157,1737426639477,-1473.93,0.000219,31]
[349784159,1737426639486,-1473.93,0.000219,31]
[349784161,1737426639495,-1473.93,0.000219,31]
[349784163,1737426639505,-1473.93,0.000219,31]
[349784165,1737426639514,-1473.93,0.000219,31]
[349784167,1737426639523,-1473.93,0.000219,31]
[349784169,1737426639532,-1473.93,0.000219,31]
[349784171,1737426639541,-1473.93,0.000219,31]
[349784173,1737426639551,-1473.93,0.000219,31]
[349784175,1737426639560,-1188.96943915,0.000219,2]
[349784177,1737426639570,-159.62755149,0.000219,2]
[349784179,1737426639579,-159.62755146,0.000219,2]
[349784181,1737426639589,-159.62755146,0.000219,2]
[349784183,1737426639599,-159.62755146,0.000219,2]
[349784185,1737426639608,-150.42581325,0.000219,2]
[349784187,1737426639618,-159.62755146,0.000219,2]
[349784189,1737426639627,-159.62755146,0.000219,2]
[349784191,1737426639641,-202.26321013,0.000219,2]
[349784193,1737426639650,-510.94510756,0.000219,2]
[349784195,1737426639659,-3945.64657501,0.000219,2]
[349784197,1737426639668,-150.0,0.00021901,2]
[349784199,1737426639678,-150.0,0.00021903,2]
[349784201,1737426639688,-1148.4149402,0.00021914,2]
[349784203,1737426639698,-252.49252953,0.00021917,2]
[349784205,1737426639707,-2254.72,0.00021918,2]
[349784207,1737426639717,-150.0,0.00021918,2]
[349784209,1737426639726,-150.0,0.00021918,2]
[349784211,1737426639735,-150.0,0.0002193,2]
[349784213,1737426639745,-150.0,0.00021942,2]
[349784214,1737426639755,-150.0,0.00021943,2]
[349784215,1737426639764,-150.0,0.00021947,2]
[349784216,1737426639773,-178.86203412,0.00021953,2]
[349784217,1737426639783,-150.0,0.00021973,4]
[349784218,1737426639792,-368.04670755,0.00021973,2]
[349784219,1737426639802,-150.0,0.00021979,2]
[349784220,1737426639812,-4853.4891187,0.00021989,2]
[349784221,1737426639821,-3832.7103037,0.00021989,2]
[349784222,1737426639830,-1559.9033869,0.00021989,2]
[349784223,1737426639840,-289.7428896,0.00021989,2]
[349784224,1737426639849,-395289.22819909,0.00021998,2]
[349784225,1737426639858,-2000.0,0.00021999,2]
[349784226,1737426639867,-2000.0,0.00021999,2]
[349784227,1737426639876,-2000.0,0.00021999,2]
[349784228,1737426639888,-2000.0,0.00021999,2]
[349784229,1737426639898,-2000.0,0.00021999,2]
[349784230,1737426639907,-2000.0,0.00021999,2]
[349784231,1737426639917,-150.0,0.00021999,2]
[349784232,1737426639926,-500.0,0.00021999,3]
[349784234,1737426639935,-158.450321,0.00021999,2]
[349784236,1737426639944,-450.0,0.00021999,2]
[349784238,1737426639958,-500.0,0.00021999,2]
[349784240,1737426639968,-500.0,0.00021999,2]
[349784242,1737426639977,-494.0,0.00021999,2]
[349784244,1737426639986,-525.50437458,0.00021999,2]
[349784246,1737426639997,-500.0,0.00021999,2]
[349784248,1737426640007,-500.0,0.00021999,2]
[349784250,1737426640016,-520.97446288,0.00021999,2]
[349784252,1737426640025,-326.6010473,0.00021999,2]
[349784254,1737426640037,-347.9534402,0.00021999,2]
[349784256,1737426640046,-500.0,0.00021999,2]
[349784258,1737426640056,-500.0,0.00021999,2]
[349784260,1737426640066,-515.06812098,0.00021999,2]
[349784262,1737426640075,-519.02060703,0.00021999,2]
[349784264,1737426640084,-524.4798246,0.00021999,2]
[349784266,1737426640094,-531.08364953,0.00021999,2]
[349784268,1737426640104,-535.51513515,0.00021999,2]
[349784270,1737426640113,-500.0,0.00021999,2]
[349784272,1737426640122,-550.55,0.00021999,2]
[349784274,1737426640133,-518.4578454,0.00021999,2]
[349784275,1737426640143,-242.2868559,0.00021999,2]
[349784277,1737426640153,-519.05372,0.00021999,2]
[349784279,1737426640163,-519.99826183,0.00021999,2]
[349784281,1737426640172,-519.54237368,0.00021999,2]
[349784284,1737426640182,-500.0,0.00021999,2]
[349784287,1737426640192,-500.0,0.00021999,2]
[349784289,1737426640202,-500.0,0.00021999,2]
[349784291,1737426640211,-500.0,0.00021999,2]
[349784293,1737426640224,-422.29471784,0.00021999,2]
[349784296,1737426640234,-500.0,0.00021999,2]
[349784298,1737426640243,-500.0,0.00021999,2]
[349784300,1737426640253,-500.0,0.00021999,2]
[349784302,1737426640262,-666.0,0.00021999,2]
[349784304,1737426640272,-500.0,0.00021999,2]
[349784306,1737426640281,-500.0,0.00021999,2]
[349784308,1737426640290,-500.0,0.00021999,2]
[349784310,1737426640300,-500.0,0.00021999,2]
[349784312,1737426640309,-187.29665006,0.00021999,2]
[349784314,1737426640319,-543.72083096,0.00021999,2]
[349784316,1737426640329,-526.55343196,0.00021999,2]
[349784318,1737426640339,-500.0,0.00021999,2]
[349784320,1737426640349,-944.52,0.00021999,2]
[349784322,1737426640358,-500.83684609,0.00021999,2]
[349784324,1737426640368,-516.79206882,0.00021999,2]
[349784326,1737426640377,-500.0,0.00021999,2]
[349784328,1737426640389,-500.0,0.00021999,2]
[349784330,1737426640399,-500.0,0.00021999,2]
[349784333,1737426640408,-515.08856061,0.00021999,2]
[349784335,1737426640418,-500.0,0.00021999,2]
[349784336,1737426640427,-500.0,0.00021999,2]
[349784338,1737426640436,-595.52,0.00021999,2]
[349784341,1737426640446,-500.0,0.00021999,2]
[349784342,1737426640456,-500.0,0.00021999,2]
[349784344,1737426640465,-500.0,0.00021999,2]
[349784346,1737426640474,-515.73344942,0.00021999,2]
[349784348,1737426640483,-500.0,0.00021999,2]
[349784350,1737426640492,-1031.44,0.00021999,2]
[349784352,1737426640502,-500.0,0.00021999,2]
[349784354,1737426640512,-500.0,0.00021999,2]
[349784356,1737426640522,-332.02222254,0.00021999,2]
[349784358,1737426640532,-545.55,0.00021999,2]
[349784360,1737426640542,-915.8,0.00021999,2]
[349784362,1737426640551,-615.28,0.00021999,2]
[349784364,1737426640560,-113517.45058512,0.00021999,2]
[349784366,1737426640570,-564.55392954,0.00021999,2]
[349784368,1737426640580,-510.24110207,0.00021999,2]
[349784370,1737426640589,-500.0,0.00021999,2]
[349784372,1737426640599,-1397.1088611,0.00021999,2]
[349784374,1737426640608,-500.0,0.00021999,2]
[349784376,1737426640617,-332.5799057,0.00021999,2]
[349784378,1737426640626,-500.0,0.00021999,2]
[349784380,1737426640637,-666.0,0.00021999,2]
[349784382,1737426640646,-500.0,0.00021999,2]
[349784384,1737426640655,-500.0,0.00021999,2]
[349784386,1737426640664,-500.0,0.00021999,2]
[349784388,1737426640673,-500.0,0.00021999,2]
[349784390,1737426640683,-500.0,0.00021999,2]
[349784392,1737426640692,-500.0,0.00021999,2]
[349784394,1737426640702,-500.0,0.00021999,2]
[349784396,1737426640711,-500.0,0.00021999,2]
[349784398,1737426640720,-500.0,0.00021999,2]
[349784399,1737426640730,-677.11,0.00021999,2]
[349784401,1737426640739,-500.0,0.00021999,2]
[349784403,1737426640748,-500.0,0.00021999,2]
[349784405,1737426640758,-500.0,0.00021999,2]
[349784407,1737426640767,-1209.89,0.00021999,2]
[349784409,1737426640776,-500.0,0.00021999,2]
[349784411,1737426640786,-424.75063229,0.00021999,2]
[349784413,1737426640795,-500.0,0.00021999,2]
[349784415,1737426640804,-500.0,0.00021999,2]
[349784417,1737426640815,-500.0,0.00021999,2]
[349784419,1737426640824,-500.0,0.00021999,2]
[349784421,1737426640833,-500.0,0.00021999,2]
[349784423,1737426640842,-500.0,0.00021999,2]
[349784425,1737426640852,-643.65,0.00021999,2]
[349784427,1737426640861,-500.0,0.00021999,2]
[349784429,1737426640871,-500.0,0.00021999,2]
[349784431,1737426640880,-500.0,0.00021999,2]
[349784433,1737426640891,-545.64,0.00021999,2]
[349784435,1737426640901,-592.44,0.00021999,2]
[349784437,1737426640911,-500.0,0.00021999,2]
[349784439,1737426640923,-595.96,0.00021999,2]
[349784441,1737426640933,-500.0,0.00021999,2]
[349784443,1737426640942,-539.21910221,0.00021999,2]
[349784445,1737426640952,-500.0,0.00021999,2]
[349784447,1737426640964,-792.13,0.00021999,2]
[349784449,1737426640974,-500.0,0.00021999,2]
[349784451,1737426640983,-500.0,0.00021999,2]
[349784453,1737426640995,-500.0,0.00021999,2]
[349784455,1737426641005,-520.99365167,0.00021999,2]
[349784457,1737426641015,-600.88287881,0.00021999,2]
[349784458,1737426641024,-500.0,0.00021999,2]
[349784460,1737426641036,-503.80268869,0.00021999,2]
[349784478,1737426641208,-485.0,0.00021999,2]
[349784480,1737426641218,-500.0,0.00021999,2]
[349784482,1737426641228,-500.0,0.00021999,2]
[349784484,1737426641238,-500.0,0.00021999,2]
[349784486,1737426641248,-563.65,0.00021999,2]
[349784488,1737426641258,-500.0,0.00021999,2]
[349784490,1737426641267,-500.0,0.00021999,2]
[349784492,1737426641277,-500.0,0.00021999,2]
[349784494,1737426641287,-500.0,0.00021999,2]
[349784496,1737426641297,-500.0,0.00021999,2]
[349784498,1737426641308,-500.0,0.00021999,2]
[349784500,1737426641318,-617.14,0.00021999,2]
[349784502,1737426641328,-500.0,0.00021999,2]
[349784504,1737426641339,-626.11,0.00021999,2]
[349784506,1737426641350,-738.95,0.00021999,2]
[349784508,1737426641360,-545.92,0.00021999,2]
[349784510,1737426641370,-500.0,0.00021999,2]
[349784512,1737426641379,-500.0,0.00021999,2]
[349784514,1737426641393,-500.0,0.00021999,2]
[349784516,1737426641403,-500.0,0.00021999,2]
[349784518,1737426641412,-500.0,0.00021999,2]
[349784520,1737426641422,-500.0,0.00021999,2]
[349784522,1737426641432,-506.67506671,0.00021999,2]
[349784524,1737426641441,-500.0,0.00021999,2]
[349784526,1737426641450,-500.0,0.00021999,2]
[349784528,1737426641459,-500.0,0.00021999,2]
[349784530,1737426641468,-503.66773774,0.00021999,2]
[349784532,1737426641477,-500.0,0.00021999,2]
[349784534,1737426641489,-500.0,0.00021999,2]
[349784536,1737426641498,-500.0,0.00021999,2]
[349784538,1737426641508,-1895.0,0.00021999,2]
[349784540,1737426641517,-220.09225564,0.00022,2]
[349784542,1737426641527,-1693.51306782,0.00022,2]
[349784544,1737426641536,-9399364.34895654,0.00022,2]
[349784546,1737426641545,-7499.51186012,0.00022,2]
[349784548,1737426641555,-2353330.2066535,0.00022,2]
[349784554,1737426641606,-584.43,0.00021999,2]
[349784556,1737426641616,-13222.36721775,0.00022,2]
[349784559,1737426641631,-4407.04102926,0.00022,2]
[349784561,1737426641648,-85808.10148344,0.00022,2]
[349784563,1737426641664,-8897.33288894,0.00022,2]
[349784566,1737426641675,-10425.55388547,0.00022,2]
[349784568,1737426641692,-9095.50442981,0.00022,2]
[349784571,1737426641707,-16131.68368021,0.00022,2]
[349784587,1737426641850,-524.43429056,0.00021999,2]
[349784589,1737426641860,-1450.32892989,0.00022,2]
[349784591,1737426641871,-3582.6264682,0.00022,2]
[349784593,1737426641882,-101754.51786618,0.00022,2]
[349784595,1737426641897,-2057.39913524,0.00022,2]
[349784600,1737426641927,-600.32567435,0.00022,2]
[349784602,1737426641938,-146611.97014442,0.00022,2]
[349784749,1737426643394,-51280.228015,0.00022,2]
[349784751,1737426643408,-2494.99999999,0.00022,2]
[349784756,1737426643445,-8650.88318621,0.00022,2]
[349784762,1737426643501,-17519.22885053,0.00022,2]
[349784769,1737426643558,-1973.4,0.00022,2]
[349784776,1737426643615,-854.55749319,0.00022,2]
[349785037,1737426646254,-4604.03757143,0.00022,2]
[349785039,1737426646266,-1627.2,0.00022,2]
[349785050,1737426646364,-824.19494969,0.00022,2]
[349785057,1737426646420,-6884.98440706,0.00022,2]
[349785089,1737426646713,-1175.26991975,0.00022,2]
[349785091,1737426646724,-358.45999987,0.00022,2]
[349785850,1737427024530,188.97,0.00010137,2]
[349785853,1737427353541,3000.0,0.00024,90]
[349785857,1737427634141,-188.97,0.00016813,2]
[349785858,1737427634162,-33.21567074,0.00018871,2]
[349785859,1737427745084,-676.99,0.00018971,2]
[349785860,1737427745104,-2064.821562,0.00019599,2]
[349785871,1737427831587,-643.14,0.00018507,2]
[349785872,1737427831597,-1432.22741327,0.00019599,2]
[349785873,1737427831606,-325.0,0.000196,5]